[Event "Titled Tuesday Blitz May 24 Early 2022"]
[White "Schut, Han"]
[Black "Al-Tarboush, Ward"]
[WhiteFideId "1005561"]
[BlackFideId "7601450"]
[WhiteElo "2057"]
[BlackElo "2294"]
[Result "0-1"]
[Round "02"]
[TimeControl "180+1"]
[Date "2022.05.25"]
[WhiteClock "0:00:11"]
[BlackClock "0:01:34"]

1. e4 {[%clk 0:02:59]}  e6 {[%clk 0:02:58]} 2. d4 {[%clk 0:02:59]}  d5 {[%clk 0:02:58]} 3. e5 {[%clk 0:03:00]}  c5 {[%clk 0:02:58]} 4. c3 {[%clk 0:03:01]}  Nc6 {[%clk 0:02:58]} 5. Nf3 {[%clk 0:03:01]}  Qb6 {[%clk 0:02:58]} 6. Bd3 {[%clk 0:03:02]}  cxd4 {[%clk 0:02:57]} 7. O-O {[%clk 0:03:03]}  Bd7 {[%clk 0:02:56]} 8. Re1 {[%clk 0:03:00]}  a6 {[%clk 0:02:57]} 9. a3 {[%clk 0:02:59]}  Nge7 {[%clk 0:02:55]} 10. h4 {[%clk 0:02:59]}  Rc8 {[%clk 0:02:40]} 11. Qe2 {[%clk 0:02:46]}  Nf5 {[%clk 0:02:33]} 12. Bxf5 {[%clk 0:02:44]}  exf5 {[%clk 0:02:34]} 13. cxd4 {[%clk 0:02:37]}  Nxd4 {[%clk 0:02:33]} 14. Nxd4 {[%clk 0:02:37]}  Qxd4 {[%clk 0:02:34]} 15. Nc3 {[%clk 0:02:35]}  Be7 {[%clk 0:02:21]} 16. Rd1 {[%clk 0:02:21]}  Qc4 {[%clk 0:02:17]} 17. Rxd5 {[%clk 0:02:14]}  Qxe2 {[%clk 0:02:16]} 18. Nxe2 {[%clk 0:02:14]}  Be6 {[%clk 0:02:16]} 19. Rd1 {[%clk 0:02:09]}  Bxh4 {[%clk 0:02:15]} 20. Nf4 {[%clk 0:01:49]}  Be7 {[%clk 0:02:12]} 21. Be3 {[%clk 0:01:33]}  g5 {[%clk 0:02:07]} 22. Nd5 {[%clk 0:01:28]}  Bxd5 {[%clk 0:02:04]} 23. Rxd5 {[%clk 0:01:29]}  O-O {[%clk 0:02:04]} 24. Rd7 {[%clk 0:01:21]}  Rfe8 {[%clk 0:01:54]} 25. Rxb7 {[%clk 0:01:17]}  f4 {[%clk 0:01:54]} 26. Bd2 {[%clk 0:01:11]}  Rc2 {[%clk 0:01:53]} 27. Bc3 {[%clk 0:01:11]}  Bc5 {[%clk 0:01:53]} 28. Rf1 {[%clk 0:01:06]}  g4 {[%clk 0:01:49]} 29. Kh1 {[%clk 0:01:03]}  Bxf2 {[%clk 0:01:43]} 30. Rd7 {[%clk 0:00:40]}  Re6 {[%clk 0:01:38]} 31. Rd6 {[%clk 0:00:23]}  g3 {[%clk 0:01:34]} 32. Rxe6 {[%clk 0:00:23]}  fxe6 {[%clk 0:01:35]} 33. Rd1 {[%clk 0:00:21]}  Kf7 {[%clk 0:01:34]} 34. Rd7+ {[%clk 0:00:11]}  Kg6 {[%clk 0:01:34]} 35. Rd1 {[%clk 0:00:11]}  h5 {[%clk 0:01:34]} 0-1


[Site "https://www.chess.com"]

[Event "Titled Tuesday Blitz May 24 Early 2022"]
[White "Sokolovsky, Yahli"]
[Black "Andreikin, Dmitry"]
[WhiteFideId "2820242"]
[BlackFideId "4158814"]
[WhiteElo "1770"]
[BlackElo "2736"]
[Result "1/2-1/2"]
[Round "02"]
[TimeControl "180+1"]
[Date "2022.05.24"]
[WhiteClock "0:01:13"]
[BlackClock "0:02:16"]

1. b3 {[%clk 0:03:00]}  e5 {[%clk 0:02:59]} 2. Bb2 {[%clk 0:03:01]}  Nc6 {[%clk 0:02:59]} 3. e3 {[%clk 0:03:01]}  Nf6 {[%clk 0:02:51]} 4. Nf3 {[%clk 0:03:01]}  e4 {[%clk 0:02:50]} 5. Nd4 {[%clk 0:03:02]}  Nxd4 {[%clk 0:02:47]} 6. Bxd4 {[%clk 0:03:03]}  d5 {[%clk 0:02:48]} 7. c4 {[%clk 0:02:54]}  dxc4 {[%clk 0:02:37]} 8. Bxc4 {[%clk 0:02:46]}  Bd6 {[%clk 0:02:38]} 9. Nc3 {[%clk 0:02:44]}  Bf5 {[%clk 0:02:37]} 10. f3 {[%clk 0:02:29]}  O-O {[%clk 0:02:36]} 11. O-O {[%clk 0:02:10]}  Bg6 {[%clk 0:02:36]} 12. fxe4 {[%clk 0:01:41]}  Nxe4 {[%clk 0:02:34]} 13. Nxe4 {[%clk 0:01:40]}  Bxe4 {[%clk 0:02:35]} 14. Qg4 {[%clk 0:01:34]}  Bg6 {[%clk 0:02:35]} 15. h4 {[%clk 0:01:29]}  Qc8 {[%clk 0:02:21]} 16. Qg5 {[%clk 0:01:24]}  Qd8 {[%clk 0:02:20]} 17. Qg4 {[%clk 0:01:24]}  Qc8 {[%clk 0:02:17]} 18. Qg5 {[%clk 0:01:17]}  Qd8 {[%clk 0:02:16]} 19. Qg4 {[%clk 0:01:13]} 1/2-1/2


[Site "https://www.chess.com"]

[Event "Titled Tuesday Blitz May 24 Early 2022"]
[White "Solovchuk, Oleksiy"]
[Black "Mekhitarian, Krikor Sevag"]
[WhiteFideId "14115220"]
[BlackFideId "2107660"]
[WhiteElo "2305"]
[BlackElo "2598"]
[Result "0-1"]
[Round "02"]
[TimeControl "180+1"]
[Date "2022.05.24"]
[WhiteClock "0:00:02"]
[BlackClock "0:00:07"]

1. c4 {[%clk 0:03:00]}  c5 {[%clk 0:02:58]} 2. Nc3 {[%clk 0:03:00]}  Nc6 {[%clk 0:02:59]} 3. g3 {[%clk 0:03:00]}  g6 {[%clk 0:02:59]} 4. Bg2 {[%clk 0:03:00]}  Bg7 {[%clk 0:02:59]} 5. d3 {[%clk 0:03:00]}  d6 {[%clk 0:02:59]} 6. Nf3 {[%clk 0:02:59]}  e5 {[%clk 0:02:59]} 7. Nd5 {[%clk 0:02:54]}  h6 {[%clk 0:02:41]} 8. Nd2 {[%clk 0:02:50]}  Nge7 {[%clk 0:02:41]} 9. Nxe7 {[%clk 0:02:50]}  Nxe7 {[%clk 0:02:37]} 10. Rb1 {[%clk 0:02:49]}  a5 {[%clk 0:02:23]} 11. Ne4 {[%clk 0:02:38]}  O-O {[%clk 0:02:21]} 12. Nc3 {[%clk 0:02:37]}  f5 {[%clk 0:02:17]} 13. O-O {[%clk 0:02:36]}  Kh7 {[%clk 0:02:16]} 14. a3 {[%clk 0:02:33]}  Nc6 {[%clk 0:02:17]} 15. Nd5 {[%clk 0:02:30]}  a4 {[%clk 0:02:12]} 16. b4 {[%clk 0:02:21]}  axb3 {[%clk 0:02:11]} 17. Rxb3 {[%clk 0:02:19]}  Ra7 {[%clk 0:02:12]} 18. Rb1 {[%clk 0:01:46]}  Rf7 {[%clk 0:02:11]} 19. Nb6 {[%clk 0:01:43]}  Be6 {[%clk 0:02:11]} 20. Bd5 {[%clk 0:01:43]}  Qe8 {[%clk 0:02:09]} 21. Bxe6 {[%clk 0:01:42]}  Qxe6 {[%clk 0:02:09]} 22. Nd5 {[%clk 0:01:42]}  f4 {[%clk 0:02:10]} 23. Kg2 {[%clk 0:01:42]}  Ra8 {[%clk 0:02:08]} 24. f3 {[%clk 0:01:37]}  fxg3 {[%clk 0:02:05]} 25. hxg3 {[%clk 0:01:36]}  Raf8 {[%clk 0:02:06]} 26. Rh1 {[%clk 0:01:35]}  Nd4 {[%clk 0:01:52]} 27. Bd2 {[%clk 0:01:30]}  h5 {[%clk 0:01:39]} 28. Rb6 {[%clk 0:01:17]}  Kg8 {[%clk 0:01:38]} 29. a4 {[%clk 0:00:51]}  Bf6 {[%clk 0:01:30]} 30. Be3 {[%clk 0:00:43]}  Bd8 {[%clk 0:01:29]} 31. Rb2 {[%clk 0:00:37]}  Re8 {[%clk 0:01:30]} 32. Qc1 {[%clk 0:00:33]}  Qd7 {[%clk 0:01:23]} 33. Bg5 {[%clk 0:00:28]}  Kg7 {[%clk 0:01:00]} 34. g4 {[%clk 0:00:20]}  Rh8 {[%clk 0:00:56]} 35. Bxd8 {[%clk 0:00:19]}  Qxd8 {[%clk 0:00:57]} 36. gxh5 {[%clk 0:00:13]}  gxh5 {[%clk 0:00:58]} 37. Kf2 {[%clk 0:00:13]}  Kf8 {[%clk 0:00:58]} 38. Rb6 {[%clk 0:00:10]}  h4 {[%clk 0:00:52]} 39. Rh3 {[%clk 0:00:10]}  Nf5 {[%clk 0:00:35]} 40. a5 {[%clk 0:00:10]}  Qd7 {[%clk 0:00:32]} 41. Qh1 {[%clk 0:00:09]}  Ng3 {[%clk 0:00:26]} 42. Qh2 {[%clk 0:00:09]}  Nf5 {[%clk 0:00:22]} 43. Ke1 {[%clk 0:00:09]}  Qa4 {[%clk 0:00:21]} 44. Rb5 {[%clk 0:00:08]}  Qa2 {[%clk 0:00:16]} 45. Kf2 {[%clk 0:00:08]}  Nd4 {[%clk 0:00:16]} 46. Ke3 {[%clk 0:00:05]}  Qc2 {[%clk 0:00:11]} 47. Ke4 {[%clk 0:00:03]}  Qd2 {[%clk 0:00:09]} 48. e3 {[%clk 0:00:02]}  Ne2 {[%clk 0:00:07]} 0-1


[Site "https://www.chess.com"]

[Event "Titled Tuesday Blitz May 24 Early 2022"]
[White "Srihari L R"]
[Black "Baches Garcia, Guillermo"]
[WhiteFideId "46617116"]
[BlackFideId "2209764"]
[WhiteElo "2121"]
[BlackElo "2521"]
[Result "1-0"]
[Round "02"]
[TimeControl "180+1"]
[Date "2022.05.25"]
[WhiteClock "0:01:11"]
[BlackClock "0:00:05"]

1. d4 {[%clk 0:02:58]}  Nf6 {[%clk 0:03:00]} 2. Nf3 {[%clk 0:02:56]}  e6 {[%clk 0:03:00]} 3. e3 {[%clk 0:02:56]}  d5 {[%clk 0:03:00]} 4. Bd3 {[%clk 0:02:56]}  c5 {[%clk 0:03:00]} 5. b3 {[%clk 0:02:55]}  Nc6 {[%clk 0:02:56]} 6. O-O {[%clk 0:02:55]}  Bd6 {[%clk 0:02:47]} 7. Bb2 {[%clk 0:02:52]}  O-O {[%clk 0:02:46]} 8. Nbd2 {[%clk 0:02:47]}  b6 {[%clk 0:02:46]} 9. a3 {[%clk 0:02:43]}  Bb7 {[%clk 0:02:25]} 10. Qe2 {[%clk 0:02:43]}  Rc8 {[%clk 0:02:02]} 11. c4 {[%clk 0:02:39]}  Qe7 {[%clk 0:01:47]} 12. Rfd1 {[%clk 0:02:35]}  Rfd8 {[%clk 0:01:46]} 13. Ne5 {[%clk 0:02:27]}  Bb8 {[%clk 0:01:42]} 14. Rac1 {[%clk 0:02:20]}  cxd4 {[%clk 0:01:36]} 15. exd4 {[%clk 0:02:19]}  dxc4 {[%clk 0:01:27]} 16. Ndxc4 {[%clk 0:02:19]}  g6 {[%clk 0:01:15]} 17. Bb1 {[%clk 0:02:13]}  Nd5 {[%clk 0:01:11]} 18. g3 {[%clk 0:01:56]}  Ba8 {[%clk 0:01:02]} 19. Be4 {[%clk 0:01:55]}  b5 {[%clk 0:00:50]} 20. Nxc6 {[%clk 0:01:54]}  Bxc6 {[%clk 0:00:49]} 21. Ne5 {[%clk 0:01:53]}  Bxe5 {[%clk 0:00:34]} 22. dxe5 {[%clk 0:01:53]}  Qb7 {[%clk 0:00:34]} 23. Qf3 {[%clk 0:01:46]}  Rd7 {[%clk 0:00:23]} 24. Rd4 {[%clk 0:01:42]}  Rcd8 {[%clk 0:00:21]} 25. Rcd1 {[%clk 0:01:40]}  Qc7 {[%clk 0:00:20]} 26. h4 {[%clk 0:01:14]}  Qxe5 {[%clk 0:00:14]} 27. Rxd5 {[%clk 0:01:13]}  Qxb2 {[%clk 0:00:14]} 28. Rxd7 {[%clk 0:01:13]}  Bxd7 {[%clk 0:00:11]} 29. Bc6 {[%clk 0:01:12]}  Qc2 {[%clk 0:00:03]} 30. Rxd7 {[%clk 0:01:10]}  Rxd7 {[%clk 0:00:01]} 31. Bxd7 {[%clk 0:01:11]}  Qc1+ {[%clk 0:00:02]} 32. Kg2 {[%clk 0:01:10]}  Qxa3 {[%clk 0:00:03]} 33. Bxb5 {[%clk 0:01:10]}  Qe7 {[%clk 0:00:03]} 34. Bc4 {[%clk 0:01:11]}  a5 {[%clk 0:00:04]} 35. h5 {[%clk 0:01:11]}  Kg7 {[%clk 0:00:05]} 36. hxg6 {[%clk 0:01:11]}  hxg6 {[%clk 0:00:05]} 37. Qc3+ {[%clk 0:01:11]} 1-0


[Site "https://www.chess.com"]

[Event "Titled Tuesday Blitz May 24 Early 2022"]
[White "Stevens, Christian"]
[Black "Zanette, Edgard Vinicius"]
[WhiteFideId "2604450"]
[BlackFideId "2109263"]
[WhiteElo "2516"]
[BlackElo "2182"]
[Result "0-1"]
[Round "02"]
[TimeControl "180+1"]
[Date "2022.05.25"]
[WhiteClock "0:00:05"]
[BlackClock "0:00:11"]

1. d4 {[%clk 0:02:45]}  Nf6 {[%clk 0:02:59]} 2. Nf3 {[%clk 0:02:30]}  c5 {[%clk 0:02:57]} 3. d5 {[%clk 0:02:29]}  e6 {[%clk 0:02:56]} 4. Nc3 {[%clk 0:02:29]}  d6 {[%clk 0:02:51]} 5. e4 {[%clk 0:02:22]}  exd5 {[%clk 0:02:50]} 6. Nxd5 {[%clk 0:02:21]}  Nxd5 {[%clk 0:02:43]} 7. Qxd5 {[%clk 0:02:19]}  Nc6 {[%clk 0:02:38]} 8. Bc4 {[%clk 0:02:00]}  Be6 {[%clk 0:02:35]} 9. Qd3 {[%clk 0:01:59]}  Nb4 {[%clk 0:02:04]} 10. Qe2 {[%clk 0:01:50]}  a6 {[%clk 0:02:00]} 11. Ng5 {[%clk 0:01:35]}  Bxc4 {[%clk 0:01:57]} 12. Qxc4 {[%clk 0:01:35]}  Qf6 {[%clk 0:01:51]} 13. O-O {[%clk 0:01:19]}  h6 {[%clk 0:01:46]} 14. Nf3 {[%clk 0:01:12]}  b5 {[%clk 0:01:45]} 15. Qe2 {[%clk 0:01:11]}  Be7 {[%clk 0:01:45]} 16. a4 {[%clk 0:01:07]}  Rb8 {[%clk 0:01:27]} 17. axb5 {[%clk 0:01:02]}  axb5 {[%clk 0:01:27]} 18. e5 {[%clk 0:00:53]}  dxe5 {[%clk 0:01:26]} 19. Nxe5 {[%clk 0:00:53]}  Nxc2 {[%clk 0:01:11]} 20. Ra7 {[%clk 0:00:33]}  Nd4 {[%clk 0:01:07]} 21. Qe4 {[%clk 0:00:34]}  O-O {[%clk 0:00:55]} 22. Nd7 {[%clk 0:00:31]}  Qe6 {[%clk 0:00:51]} 23. Qxe6 {[%clk 0:00:29]}  fxe6 {[%clk 0:00:32]} 24. Nxb8 {[%clk 0:00:29]}  Bd6 {[%clk 0:00:31]} 25. Nd7 {[%clk 0:00:27]}  Rf7 {[%clk 0:00:29]} 26. Ra8+ {[%clk 0:00:24]}  Kh7 {[%clk 0:00:29]} 27. Nb6 {[%clk 0:00:25]}  Ne2+ {[%clk 0:00:26]} 28. Kh1 {[%clk 0:00:25]}  Nxc1 {[%clk 0:00:20]} 29. Rxc1 {[%clk 0:00:25]}  Rxf2 {[%clk 0:00:20]} 30. Nc8 {[%clk 0:00:15]}  Bf4 {[%clk 0:00:20]} 31. Rb1 {[%clk 0:00:12]}  c4 {[%clk 0:00:20]} 32. Ra5 {[%clk 0:00:08]}  b4 {[%clk 0:00:19]} 33. Rc5 {[%clk 0:00:08]}  c3 {[%clk 0:00:19]} 34. bxc3 {[%clk 0:00:07]}  b3 {[%clk 0:00:19]} 35. Rb5 {[%clk 0:00:05]}  Bc1 {[%clk 0:00:11]} 36. R5xb3 {[%clk 0:00:05]}  Rf1# {[%clk 0:00:11]} 0-1


[Site "https://www.chess.com"]

[Event "Titled Tuesday Blitz May 24 Early 2022"]
[White "Tasev, Dejan"]
[Black "Costachi, Mihnea"]
[WhiteFideId "936618"]
[BlackFideId "1217518"]
[WhiteElo "2253"]
[BlackElo "2476"]
[Result "0-1"]
[Round "02"]
[TimeControl "180+1"]
[Date "2022.05.24"]
[WhiteClock "0:00:19"]
[BlackClock "0:01:11"]

1. e4 {[%clk 0:03:00]}  c5 {[%clk 0:02:59]} 2. Nf3 {[%clk 0:03:00]}  d6 {[%clk 0:02:59]} 3. Nc3 {[%clk 0:03:00]}  c4 {[%clk 0:03:00]} 4. Bxc4 {[%clk 0:02:58]}  Nf6 {[%clk 0:02:57]} 5. Bb3 {[%clk 0:02:58]}  e6 {[%clk 0:02:56]} 6. d4 {[%clk 0:02:58]}  Be7 {[%clk 0:02:55]} 7. h3 {[%clk 0:02:58]}  O-O {[%clk 0:02:53]} 8. O-O {[%clk 0:02:58]}  a6 {[%clk 0:02:54]} 9. Qe2 {[%clk 0:02:55]}  b5 {[%clk 0:02:54]} 10. a3 {[%clk 0:02:54]}  Bb7 {[%clk 0:02:54]} 11. e5 {[%clk 0:02:51]}  Nfd7 {[%clk 0:02:50]} 12. exd6 {[%clk 0:02:46]}  Bxd6 {[%clk 0:02:50]} 13. Ne4 {[%clk 0:02:46]}  Be7 {[%clk 0:02:49]} 14. c3 {[%clk 0:02:44]}  Nc6 {[%clk 0:02:48]} 15. Rd1 {[%clk 0:02:42]}  Nf6 {[%clk 0:02:47]} 16. Nxf6+ {[%clk 0:02:36]}  Bxf6 {[%clk 0:02:47]} 17. Bf4 {[%clk 0:02:36]}  Re8 {[%clk 0:02:45]} 18. Rd2 {[%clk 0:02:32]}  Na5 {[%clk 0:02:45]} 19. Ba2 {[%clk 0:02:30]}  Rc8 {[%clk 0:02:42]} 20. Rad1 {[%clk 0:02:26]}  Nc4 {[%clk 0:02:42]} 21. Rd3 {[%clk 0:02:18]}  Qb6 {[%clk 0:02:28]} 22. Ne5 {[%clk 0:02:15]}  Nxe5 {[%clk 0:02:17]} 23. dxe5 {[%clk 0:02:08]}  Be7 {[%clk 0:02:17]} 24. Rg3 {[%clk 0:02:07]}  Red8 {[%clk 0:02:14]} 25. Bb1 {[%clk 0:01:56]}  g6 {[%clk 0:02:11]} 26. Rgd3 {[%clk 0:01:45]}  Rxd3 {[%clk 0:02:10]} 27. Bxd3 {[%clk 0:01:39]}  Qc6 {[%clk 0:02:10]} 28. f3 {[%clk 0:01:35]}  Qc5+ {[%clk 0:02:00]} 29. Qe3 {[%clk 0:01:31]}  Qc7 {[%clk 0:01:56]} 30. Qe2 {[%clk 0:01:28]}  Qc5+ {[%clk 0:01:56]} 31. Kh2 {[%clk 0:01:28]}  Rd8 {[%clk 0:01:55]} 32. Bc2 {[%clk 0:01:22]}  Rxd1 {[%clk 0:01:52]} 33. Qxd1 {[%clk 0:01:21]}  Bd5 {[%clk 0:01:49]} 34. Qd4 {[%clk 0:01:19]}  Qc6 {[%clk 0:01:50]} 35. Be4 {[%clk 0:01:10]}  Bxe4 {[%clk 0:01:43]} 36. Qxe4 {[%clk 0:01:09]}  Qc7 {[%clk 0:01:37]} 37. Qa8+ {[%clk 0:01:03]}  Kg7 {[%clk 0:01:37]} 38. Qxa6 {[%clk 0:01:03]}  Qc4 {[%clk 0:01:38]} 39. Bg3 {[%clk 0:00:58]}  h5 {[%clk 0:01:38]} 40. Qa7 {[%clk 0:00:46]}  Bc5 {[%clk 0:01:39]} 41. Qd7 {[%clk 0:00:36]}  Qf1 {[%clk 0:01:16]} 42. Bh4 {[%clk 0:00:19]}  Qg1+ {[%clk 0:01:14]} 43. Kg3 {[%clk 0:00:19]}  Qe1+ {[%clk 0:01:12]} 44. Kh2 {[%clk 0:00:19]}  Bg1+ {[%clk 0:01:11]} 0-1


[Site "https://www.chess.com"]

[Event "Titled Tuesday Blitz May 24 Early 2022"]
[White "Timofeev, Artyom"]
[Black "Avramidou, Anastasia"]
[WhiteFideId "4140419"]
[BlackFideId "4239873"]
[WhiteElo "2594"]
[BlackElo "2183"]
[Result "1-0"]
[Round "02"]
[TimeControl "180+1"]
[Date "2022.05.25"]
[WhiteClock "0:01:26"]
[BlackClock "0:00:14"]

1. e4 {[%clk 0:03:00]}  c6 {[%clk 0:02:55]} 2. Ne2 {[%clk 0:02:59]}  d5 {[%clk 0:02:55]} 3. e5 {[%clk 0:02:59]}  g6 {[%clk 0:02:53]} 4. d4 {[%clk 0:02:56]}  Bg7 {[%clk 0:02:54]} 5. Be3 {[%clk 0:02:54]}  f6 {[%clk 0:02:54]} 6. f4 {[%clk 0:02:53]}  Nh6 {[%clk 0:02:54]} 7. Qd2 {[%clk 0:02:46]}  c5 {[%clk 0:02:49]} 8. Nbc3 {[%clk 0:02:41]}  cxd4 {[%clk 0:02:48]} 9. Bxd4 {[%clk 0:02:38]}  O-O {[%clk 0:02:45]} 10. exf6 {[%clk 0:02:38]}  exf6 {[%clk 0:02:44]} 11. O-O-O {[%clk 0:02:37]}  Be6 {[%clk 0:02:41]} 12. Kb1 {[%clk 0:02:36]}  Nc6 {[%clk 0:02:40]} 13. h3 {[%clk 0:02:31]}  Nxd4 {[%clk 0:02:33]} 14. Nxd4 {[%clk 0:02:31]}  Bf7 {[%clk 0:02:33]} 15. g4 {[%clk 0:02:31]}  Re8 {[%clk 0:02:24]} 16. Bg2 {[%clk 0:02:29]}  Rc8 {[%clk 0:02:18]} 17. Nb3 {[%clk 0:02:22]}  Qc7 {[%clk 0:01:43]} 18. Nxd5 {[%clk 0:02:16]}  Qb8 {[%clk 0:01:40]} 19. Rhe1 {[%clk 0:02:10]}  Rxe1 {[%clk 0:01:32]} 20. Qxe1 {[%clk 0:02:04]}  Re8 {[%clk 0:01:30]} 21. Qb4 {[%clk 0:02:01]}  b6 {[%clk 0:01:19]} 22. a4 {[%clk 0:01:57]}  Be6 {[%clk 0:01:11]} 23. Nd4 {[%clk 0:01:52]}  Bxd5 {[%clk 0:01:04]} 24. Bxd5+ {[%clk 0:01:52]}  Kh8 {[%clk 0:01:05]} 25. Ne6 {[%clk 0:01:50]}  Ng8 {[%clk 0:00:43]} 26. Bb3 {[%clk 0:01:40]}  Qc8 {[%clk 0:00:25]} 27. Qd6 {[%clk 0:01:39]}  Ne7 {[%clk 0:00:14]} 28. Nc7 {[%clk 0:01:26]} 1-0


[Site "https://www.chess.com"]

[Event "Titled Tuesday Blitz May 24 Early 2022"]
[White "Tomaszewski, Kacper"]
[Black "Borawski, Jakub"]
[WhiteFideId "1127373"]
[BlackFideId "1143000"]
[WhiteElo "2153"]
[BlackElo "2020"]
[Result "0-1"]
[Round "02"]
[TimeControl "180+1"]
[Date "2022.05.25"]
[WhiteClock "0:01:21"]
[BlackClock "0:01:01"]

1. e4 {[%clk 0:03:00]}  e5 {[%clk 0:02:42]} 2. Nc3 {[%clk 0:02:59]}  Nf6 {[%clk 0:02:38]} 3. Nf3 {[%clk 0:02:58]}  Nc6 {[%clk 0:02:37]} 4. g3 {[%clk 0:02:58]}  d5 {[%clk 0:02:36]} 5. exd5 {[%clk 0:02:55]}  Nxd5 {[%clk 0:02:37]} 6. Bg2 {[%clk 0:02:55]}  Be7 {[%clk 0:02:37]} 7. O-O {[%clk 0:02:53]}  Be6 {[%clk 0:02:37]} 8. Re1 {[%clk 0:02:52]}  f6 {[%clk 0:02:35]} 9. d4 {[%clk 0:02:48]}  Nxc3 {[%clk 0:02:33]} 10. bxc3 {[%clk 0:02:48]}  Qd7 {[%clk 0:02:24]} 11. Bb2 {[%clk 0:02:31]}  O-O-O {[%clk 0:02:17]} 12. c4 {[%clk 0:02:12]}  Bxc4 {[%clk 0:02:15]} 13. dxe5 {[%clk 0:02:05]}  Qxd1 {[%clk 0:01:43]} 14. Raxd1 {[%clk 0:02:04]}  Rxd1 {[%clk 0:01:36]} 15. Rxd1 {[%clk 0:02:05]}  Bxa2 {[%clk 0:01:36]} 16. exf6 {[%clk 0:02:01]}  Bxf6 {[%clk 0:01:36]} 17. Bxf6 {[%clk 0:02:00]}  gxf6 {[%clk 0:01:37]} 18. Bh3+ {[%clk 0:01:59]}  Kb8 {[%clk 0:01:36]} 19. Rd7 {[%clk 0:01:53]}  a5 {[%clk 0:01:20]} 20. Bf5 {[%clk 0:01:48]}  a4 {[%clk 0:01:05]} 21. Bxh7 {[%clk 0:01:45]}  Be6 {[%clk 0:01:01]} 22. Rg7 {[%clk 0:01:21]}  a3 {[%clk 0:01:01]} 0-1


[Site "https://www.chess.com"]

[Event "Titled Tuesday Blitz May 24 Early 2022"]
[White "Toncheva, Nadya"]
[Black "Piliczewski, Bogusz"]
[WhiteFideId "2924056"]
[BlackFideId "1104144"]
[WhiteElo "1888"]
[BlackElo "1896"]
[Result "1-0"]
[Round "02"]
[TimeControl "180+1"]
[Date "2022.05.25"]
[WhiteClock "0:00:25"]
[BlackClock "0:00:05"]

1. e4 {[%clk 0:03:00]}  c6 {[%clk 0:02:57]} 2. d4 {[%clk 0:03:00]}  d5 {[%clk 0:02:56]} 3. Nc3 {[%clk 0:03:01]}  dxe4 {[%clk 0:02:55]} 4. Nxe4 {[%clk 0:03:02]}  Bf5 {[%clk 0:02:55]} 5. Ng3 {[%clk 0:03:02]}  Bg6 {[%clk 0:02:56]} 6. h4 {[%clk 0:03:02]}  h6 {[%clk 0:02:55]} 7. Nf3 {[%clk 0:03:03]}  Nd7 {[%clk 0:02:55]} 8. Bd3 {[%clk 0:03:03]}  Bxd3 {[%clk 0:02:54]} 9. Qxd3 {[%clk 0:03:04]}  e6 {[%clk 0:02:54]} 10. Bf4 {[%clk 0:03:04]}  Qa5+ {[%clk 0:02:51]} 11. Bd2 {[%clk 0:03:04]}  Qc7 {[%clk 0:02:50]} 12. O-O-O {[%clk 0:03:04]}  Ngf6 {[%clk 0:02:48]} 13. Kb1 {[%clk 0:03:00]}  Bd6 {[%clk 0:02:44]} 14. Ne4 {[%clk 0:02:59]}  Nxe4 {[%clk 0:02:43]} 15. Qxe4 {[%clk 0:03:00]}  O-O-O {[%clk 0:02:36]} 16. c4 {[%clk 0:02:56]}  Nf6 {[%clk 0:02:29]} 17. Qe2 {[%clk 0:02:56]}  Bf4 {[%clk 0:02:21]} 18. Bc3 {[%clk 0:02:54]}  Rhe8 {[%clk 0:02:11]} 19. g3 {[%clk 0:02:45]}  Bd6 {[%clk 0:02:06]} 20. Ne5 {[%clk 0:02:44]}  Bxe5 {[%clk 0:02:00]} 21. dxe5 {[%clk 0:02:45]}  Nd7 {[%clk 0:01:56]} 22. Qe3 {[%clk 0:02:36]}  c5 {[%clk 0:01:51]} 23. Rd6 {[%clk 0:02:26]}  Nb6 {[%clk 0:01:18]} 24. Qd3 {[%clk 0:02:26]}  Rd7 {[%clk 0:01:08]} 25. Rd1 {[%clk 0:02:22]}  Red8 {[%clk 0:01:06]} 26. b3 {[%clk 0:02:20]}  Kb8 {[%clk 0:00:58]} 27. Ba5 {[%clk 0:01:59]}  Rxd6 {[%clk 0:00:48]} 28. exd6 {[%clk 0:02:00]}  Qc6 {[%clk 0:00:44]} 29. Bc3 {[%clk 0:01:35]}  f6 {[%clk 0:00:40]} 30. Ba5 {[%clk 0:01:05]}  Rd7 {[%clk 0:00:39]} 31. g4 {[%clk 0:00:53]}  e5 {[%clk 0:00:22]} 32. g5 {[%clk 0:00:40]}  hxg5 {[%clk 0:00:20]} 33. hxg5 {[%clk 0:00:40]}  Ka8 {[%clk 0:00:18]} 34. gxf6 {[%clk 0:00:40]}  gxf6 {[%clk 0:00:17]} 35. Rg1 {[%clk 0:00:37]}  a6 {[%clk 0:00:09]} 36. Rd1 {[%clk 0:00:25]}  Nc8 {[%clk 0:00:05]} 37. Bc7 {[%clk 0:00:25]} 1-0


[Site "https://www.chess.com"]

[Event "Titled Tuesday Blitz May 24 Early 2022"]
[White "Turutin, Alexander"]
[Black "Khoroshev, Nikita"]
[WhiteFideId "4180623"]
[BlackFideId "14200287"]
[WhiteElo "2402"]
[BlackElo "2354"]
[Result "0-1"]
[Round "02"]
[TimeControl "180+1"]
[Date "2022.05.25"]
[WhiteClock "0:00:10"]
[BlackClock "0:01:08"]

1. g3 {[%clk 0:03:00]}  d5 {[%clk 0:02:59]} 2. Bg2 {[%clk 0:03:01]}  c5 {[%clk 0:02:59]} 3. d3 {[%clk 0:03:00]}  Nc6 {[%clk 0:03:00]} 4. Nf3 {[%clk 0:02:59]}  g6 {[%clk 0:02:58]} 5. O-O {[%clk 0:02:59]}  Bg7 {[%clk 0:02:58]} 6. Nc3 {[%clk 0:02:59]}  Nf6 {[%clk 0:02:56]} 7. a3 {[%clk 0:03:00]}  O-O {[%clk 0:02:56]} 8. Rb1 {[%clk 0:03:00]}  a5 {[%clk 0:02:49]} 9. a4 {[%clk 0:02:59]}  Bf5 {[%clk 0:02:43]} 10. Nh4 {[%clk 0:02:52]}  Bg4 {[%clk 0:02:42]} 11. h3 {[%clk 0:02:51]}  Be6 {[%clk 0:02:41]} 12. e4 {[%clk 0:02:51]}  dxe4 {[%clk 0:02:42]} 13. Nxe4 {[%clk 0:02:46]}  Nxe4 {[%clk 0:02:42]} 14. dxe4 {[%clk 0:02:37]}  Qxd1 {[%clk 0:02:41]} 15. Rxd1 {[%clk 0:02:36]}  Nd4 {[%clk 0:02:41]} 16. Be3 {[%clk 0:02:21]}  Nxc2 {[%clk 0:02:29]} 17. Bxc5 {[%clk 0:02:20]}  Rfe8 {[%clk 0:02:18]} 18. f4 {[%clk 0:02:18]}  Rac8 {[%clk 0:02:16]} 19. Bf2 {[%clk 0:02:10]}  Bb3 {[%clk 0:02:16]} 20. Rd7 {[%clk 0:02:09]}  Bxa4 {[%clk 0:02:15]} 21. Rxb7 {[%clk 0:02:08]}  Rb8 {[%clk 0:02:15]} 22. Ra7 {[%clk 0:02:01]}  Ra8 {[%clk 0:02:14]} 23. Rxa8 {[%clk 0:01:46]}  Rxa8 {[%clk 0:02:15]} 24. e5 {[%clk 0:01:47]}  Rb8 {[%clk 0:02:13]} 25. Nf3 {[%clk 0:01:45]}  f6 {[%clk 0:02:10]} 26. exf6 {[%clk 0:01:23]}  exf6 {[%clk 0:02:07]} 27. Nd2 {[%clk 0:01:23]}  f5 {[%clk 0:02:06]} 28. Nc4 {[%clk 0:01:19]}  Rb4 {[%clk 0:02:04]} 29. Bd5+ {[%clk 0:01:18]}  Kh8 {[%clk 0:02:03]} 30. Ne5 {[%clk 0:01:10]}  Bf6 {[%clk 0:01:44]} 31. Nd3 {[%clk 0:00:45]}  Rb8 {[%clk 0:01:37]} 32. b3 {[%clk 0:00:42]}  Bb5 {[%clk 0:01:30]} 33. Ne5 {[%clk 0:00:40]}  Kg7 {[%clk 0:01:23]} 34. Rc1 {[%clk 0:00:40]}  Bxe5 {[%clk 0:01:19]} 35. fxe5 {[%clk 0:00:39]}  Bd3 {[%clk 0:01:19]} 36. Rd1 {[%clk 0:00:35]}  Nb4 {[%clk 0:01:19]} 37. Bc4 {[%clk 0:00:29]}  Bxc4 {[%clk 0:01:16]} 38. bxc4 {[%clk 0:00:30]}  Kf7 {[%clk 0:01:14]} 39. Rd7+ {[%clk 0:00:27]}  Ke6 {[%clk 0:01:14]} 40. Ra7 {[%clk 0:00:25]}  Kxe5 {[%clk 0:01:14]} 41. Rxa5+ {[%clk 0:00:25]}  Ke4 {[%clk 0:01:15]} 42. c5 {[%clk 0:00:23]}  Nd3 {[%clk 0:01:13]} 43. Ra2 {[%clk 0:00:16]}  Kf3 {[%clk 0:01:10]} 44. Bd4 {[%clk 0:00:10]}  Kxg3 {[%clk 0:01:09]} 45. c6 {[%clk 0:00:10]}  Rb1# {[%clk 0:01:08]} 0-1


[Site "https://www.chess.com"]